[Event "CZE-ch 2020"]
[Site "Pilsen"]
[Date "2020.08.23"]
[Round "1.2"]
[White "Kawulok, Marek"]
[Black "Laznicka, Viktor"]
[Result "1/2-1/2"]
[ECO "B40"]
[WhiteElo "2226"]
[BlackElo "2638"]
[Annotator "ChessBase"]
[PlyCount "61"]
[EventDate "2020.08.23"]
[EventType "swiss"]
[EventCountry "CZE"]
[SourceTitle "playchess.com"]
[Source "ChessBase"]
[SourceQuality "1"]
[TimeControl "40/5400+30:1800+30"]

1. e4 {[%emt 0:00:00]} c5 {[%emt 0:00:00]} 2. Nf3 {[%emt 0:00:00]} e6 {[%emt 0:00:11]} 3. g3 {[%emt 0:00:01]} d5 {[%emt 0:01:46]} 4. exd5 {[%emt 0:00:21]} exd5 {[%emt 0:00:05]} 5. d4 {[%emt 0:00:04]} Nc6 {[%emt 0:00:22]} 6. Bg2 {[%emt 0:01:31]} Bg4 {[%emt 0:00:17]} 7. h3 {[%emt 0:02:52]} Bxf3 {[%emt 0:10:27]} 8. Qxf3 {[%emt 0:01:03]} Qe7+ {[%emt 0:03:46]} 9. Kf1 {[%emt 0:00:57]} Nxd4 {[%emt 0:03:29]} 10. Qd3 {[%emt 0:07:55]} O-O-O {[%emt 0:04:30]} 11. Nc3 {[%emt 0:07:05]} Qe6 {[%emt 0:01:41]} 12. Bg5 {[%emt 0:25:34]} f6 {[%emt 0:16:33]} 13. Be3 {[%emt 0:00:49]} Ne7 {[%emt 0:10:02]} 14. Bxd4 {[%emt 0:09:55]} cxd4 {[%emt 0:00:14]} 15. Nb5 {[%emt 0:00:11]} Qb6 {[%emt 0:17:57]} 16. Rd1 {[%emt 0:08:47]} Nc6 {[%emt 0:17:23]} 17. Nxd4 {[%emt 0:07:44]} Nxd4 {[%emt 0:02:26]} 18. Qxd4 {[%emt 0:00:06]} Bc5 {[%emt 0:00:09]} 19. Qc3 {[%emt 0:00:18]} Kb8 {[%emt 0:00:50]} 20. Qb3 {[%emt 0:10:18]} Qa6+ {[%emt 0:01:36]} 21. Qd3 {[%emt 0:00:06]} Qxa2 {[%emt 0:00:46]} 22. b3 {[%emt 0:01:33]} Rhe8 {[%emt 0:01:07]} 23. Bf3 {[%emt 0:03:12]} g6 {[%emt 0:03:13]} 24. Kg2 {[%emt 0:00:08]} Re5 {[%emt 0:02:34]} 25. Rhe1 {[%emt 0:02:15]} Rxe1 {[%emt 0:00:02]} 26. Rxe1 {[%emt 0:00:05]} Qa5 {[%emt 0:00:05]} 27. Re6 {[%emt 0:01:22]} f5 {[%emt 0:00:21]} 28. Re5 {[%emt 0:03:00]} Qb6 {[%emt 0:01:31]} 29. Rxd5 {[%emt 0:00:36]} Rxd5 {[%emt 0:00:08]} 30. Qxd5 {[%emt 0:00:04]} a5 31. Qg8+ 1/2-1/2

[Event "CZE-ch 2020"]
[Site "Pilsen"]
[Date "2020.08.23"]
[Round "1.4"]
[White "Vybiral, Zdenek"]
[Black "Michalik, Peter"]
[Result "1/2-1/2"]
[ECO "E27"]
[WhiteElo "2221"]
[BlackElo "2593"]
[Annotator "ChessBase"]
[PlyCount "71"]
[EventDate "2020.08.23"]
[EventType "swiss"]
[EventCountry "CZE"]
[SourceTitle "playchess.com"]
[Source "ChessBase"]
[SourceQuality "1"]
[TimeControl "40/5400+30:1800+30"]

1. d4 {[%emt 0:00:00]} Nf6 {[%emt 0:00:00]} 2. c4 {[%emt 0:00:00]} e6 {[%emt 0:00:00]} 3. Nc3 {[%emt 0:00:00]} Bb4 {[%emt 0:00:00]} 4. a3 {[%emt 0:00:16]} Bxc3+ {[%emt 0:00:01]} 5. bxc3 {[%emt 0:00:03]} O-O {[%emt 0:00:54]} 6. f3 {[%emt 0:00:34]} c5 {[%emt 0:01:13]} 7. e4 {[%emt 0:01:35]} Ne8 {[%emt 0:03:38]} 8. Bd3 {[%emt 0:02:24]} Nc6 {[%emt 0:01:56]} 9. Ne2 {[%emt 0:03:32]} b6 {[%emt 0:00:48]} 10. O-O {[%emt 0:00:14]} Ba6 {[%emt 0:00:04]} 11. f4 {[%emt 0:00:13]} f5 {[%emt 0:01:05]} 12. d5 {[%emt 0:00:53]} Na5 {[%emt 0:05:45]} 13. e5 {[%emt 0:00:14]} Bxc4 {[%emt 0:06:58]} 14. Bxc4 {[%emt 0:00:17]} Nxc4 {[%emt 0:00:04]} 15. d6 {[%emt 0:00:08]} Qc8 {[%emt 0:07:34]} 16. Qd3 {[%emt 0:01:05]} Na5 {[%emt 0:00:57]} 17. Rb1 {[%emt 0:03:55]} Qc6 {[%emt 0:02:20]} 18. Be3 {[%emt 0:17:30]} Qe4 {[%emt 0:02:31]} 19. Qxe4 {[%emt 0:28:57]} fxe4 {[%emt 0:00:04]} 20. Ng3 {[%emt 0:00:11]} Nc4 {[%emt 0:00:28]} 21. Bc1 {[%emt 0:00:10]} e3 {[%emt 0:00:42]} 22. Ne4 {[%emt 0:06:42]} h5 {[%emt 0:00:42]} 23. g3 {[%emt 0:02:52]} Rf5 {[%emt 0:04:04]} 24. h4 {[%emt 0:08:37]} g6 {[%emt 0:05:38]} 25. Re1 {[%emt 0:01:57]} Ng7 {[%emt 0:01:47]} 26. a4 {[%emt 0:00:35]} Rff8 {[%emt 0:01:40]} 27. Bxe3 {[%emt 0:00:22]} Nf5 {[%emt 0:00:06]} 28. Bf2 {[%emt 0:00:15]} Nh6 {[%emt 0:02:25]} 29. Kf1 {[%emt 0:05:56]} Ng4 {[%emt 0:01:40]} 30. Ke2 {[%emt 0:00:16]} Rac8 {[%emt 0:08:56]} 31. Bg1 {[%emt 0:00:19]} Na3 {[%emt 0:01:51]} 32. Rb3 {[%emt 0:01:24]} Nc4 {[%emt 0:00:06]} 33. Rb5 {[%emt 0:06:29]} Na3 {[%emt 0:00:17]} 34. Rb3 {[%emt 0:01:39]} Nc4 {[%emt 0:00:14]} 35. Rbb1 {[%emt 0:01:38]} Na3 {[%emt 0:00:13]} 36. Rb3 {[%emt 0:03:15]} 1/2-1/2

[Event "CZE-ch 2020"]
[Site "Pilsen"]
[Date "2020.08.23"]
[Round "1.5"]
[White "Babula, Vlastimil"]
[Black "Eret, Jonas"]
[Result "1-0"]
[ECO "D37"]
[WhiteElo "2571"]
[BlackElo "2219"]
[Annotator "ChessBase"]
[PlyCount "71"]
[EventDate "2020.08.23"]
[EventType "swiss"]
[EventCountry "CZE"]
[SourceTitle "playchess.com"]
[Source "ChessBase"]
[SourceQuality "1"]
[TimeControl "40/5400+30:1800+30"]

1. d4 {[%emt 0:00:00]} Nf6 {[%emt 0:00:00]} 2. c4 {[%emt 0:00:17]} e6 {[%emt 0:00:28]} 3. Nf3 {[%emt 0:01:04]} Bb4+ {[%emt 0:01:23]} 4. Bd2 {[%emt 0:00:38]} Be7 {[%emt 0:04:24]} 5. Nc3 {[%emt 0:06:15]} d5 {[%emt 0:00:32]} 6. Bf4 {[%emt 0:06:47]} O-O {[%emt 0:03:09]} 7. e3 {[%emt 0:00:32]} b6 {[%emt 0:02:41]} 8. cxd5 {[%emt 0:01:44]} Nxd5 {[%emt 0:01:50]} 9. Nxd5 {[%emt 0:01:17]} exd5 {[%emt 0:04:20]} 10. Bd3 {[%emt 0:03:04]} c5 {[%emt 0:02:45]} 11. dxc5 {[%emt 0:05:24]} bxc5 {[%emt 0:00:31]} 12. O-O {[%emt 0:00:28]} Nc6 {[%emt 0:02:55]} 13. Rc1 {[%emt 0:11:28]} Be6 {[%emt 0:08:17]} 14. Qa4 {[%emt 0:03:45]} Nb4 {[%emt 0:03:42]} 15. Bb1 {[%emt 0:02:07]} Bd7 {[%emt 0:10:04]} 16. Qd1 {[%emt 0:03:02]} Be6 {[%emt 0:06:10]} 17. a3 {[%emt 0:03:57]} Nc6 {[%emt 0:00:05]} 18. b4 {[%emt 0:14:31]} c4 {[%emt 0:01:49]} 19. e4 {[%emt 0:04:02]} a6 {[%emt 0:02:16]} 20. exd5 {[%emt 0:00:49]} Qxd5 {[%emt 0:01:11]} 21. Qxd5 {[%emt 0:08:21]} Bxd5 {[%emt 0:00:05]} 22. Nd2 {[%emt 0:00:35]} Nd4 {[%emt 0:06:59]} 23. Rfe1 {[%emt 0:00:11]} Ne6 {[%emt 0:04:50]} 24. Be5 {[%emt 0:01:06]} Bg5 {[%emt 0:01:51]} 25. Rcd1 {[%emt 0:00:36]} Rac8 {[%emt 0:11:12]} 26. Bc3 {[%emt 0:02:25]} Bf6 {[%emt 0:01:42]} 27. Bxf6 {[%emt 0:04:28]} gxf6 {[%emt 0:00:05]} 28. Nf1 {[%emt 0:03:15]} Bc6 {[%emt 0:06:35]} 29. Ne3 {[%emt 0:01:12]} Ba4 {[%emt 0:02:39]} 30. Rd6 {[%emt 0:03:20]} c3 {[%emt 0:01:39]} 31. Rc1 {[%emt 0:00:05]} Nf4 {[%emt 0:02:47]} 32. Kh1 {[%emt 0:02:30]} c2 {[%emt 0:00:55]} 33. Bxc2 {[%emt 0:01:02]} Rc3 {[%emt 0:00:59]} 34. Bxh7+ {[%emt 0:00:55]} Kxh7 {[%emt 0:00:10]} 35. Rxc3 {[%emt 0:00:05]} Bb5 {[%emt 0:00:20]} 36. g3 {[%emt 0:01:24]} 1-0

[Event "CZE-ch 2020"]
[Site "Pilsen"]
[Date "2020.08.23"]
[Round "1.6"]
[White "Frank, Adam"]
[Black "Nguyen, Thai Dai Van"]
[Result "0-1"]
[ECO "C78"]
[WhiteElo "2219"]
[BlackElo "2569"]
[Annotator "ChessBase"]
[PlyCount "58"]
[EventDate "2020.08.23"]
[EventType "swiss"]
[EventCountry "CZE"]
[SourceTitle "playchess.com"]
[Source "ChessBase"]
[SourceQuality "1"]
[TimeControl "40/5400+30:1800+30"]

1. e4 {[%emt 0:00:00]} e5 {[%emt 0:00:00]} 2. Nf3 {[%emt 0:00:00]} Nc6 {[%emt 0:00:00]} 3. Bb5 {[%emt 0:00:00]} a6 {[%emt 0:00:00]} 4. Ba4 {[%emt 0:00:00]} Nf6 {[%emt 0:00:06]} 5. O-O {[%emt 0:00:00]} Bc5 {[%emt 0:02:29]} 6. c3 {[%emt 0:00:31]} O-O {[%emt 0:02:03]} 7. d4 {[%emt 0:00:11]} Ba7 {[%emt 0:00:05]} 8. d5 {[%emt 0:02:31]} Ne7 {[%emt 0:02:16]} 9. Nxe5 {[%emt 0:03:52]} d6 {[%emt 0:03:17]} 10. Nf3 {[%emt 0:02:19]} Nxe4 {[%emt 0:02:00]} 11. Bc2 {[%emt 0:05:37]} Nf6 {[%emt 0:06:59]} 12. Bg5 {[%emt 0:09:50]} Ng6 {[%emt 0:14:07]} 13. Nh4 {[%emt 0:05:35]} h6 {[%emt 0:04:10]} 14. Nxg6 {[%emt 0:01:20]} fxg6 {[%emt 0:00:07]} 15. Be3 {[%emt 0:01:06]} Bxe3 {[%emt 0:02:49]} 16. fxe3 {[%emt 0:00:05]} Ng4 {[%emt 0:10:53]} 17. Bxg6 {[%emt 0:11:43]} Rf6 {[%emt 0:00:18]} 18. Rxf6 {[%emt 0:12:53]} Qxf6 {[%emt 0:00:09]} 19. h3 {[%emt 0:03:57]} Qf2+ {[%emt 0:06:48]} 20. Kh1 {[%emt 0:00:04]} Ne5 {[%emt 0:02:19]} 21. Bh5 {[%emt 0:08:10]} Bxh3 {[%emt 0:14:52]} 22. gxh3 {[%emt 0:01:06]} Rf8 {[%emt 0:00:06]} 23. Nd2 {[%emt 0:13:23]} Qxe3 {[%emt 0:00:45]} 24. Nf1 {[%emt 0:01:56]} Qxh3+ {[%emt 0:00:10]} 25. Kg1 {[%emt 0:00:05]} Rf5 {[%emt 0:00:24]} 26. Be2 {[%emt 0:00:10]} Rg5+ {[%emt 0:00:08]} 27. Kf2 {[%emt 0:00:04]} Rg2+ {[%emt 0:00:04]} 28. Ke1 {[%emt 0:00:03]} Nf3+ {[%emt 0:00:04]} 29. Bxf3 {[%emt 0:00:21]} Qh4+ {[%emt 0:00:05]} 0-1

[Event "CZE-ch 2020"]
[Site "Pilsen"]
[Date "2020.08.23"]
[Round "1.7"]
[White "Hracek, Zbynek"]
[Black "Vorisek, Jakub"]
[Result "1-0"]
[ECO "D00"]
[WhiteElo "2563"]
[BlackElo "2205"]
[Annotator "ChessBase"]
[PlyCount "49"]
[EventDate "2020.08.23"]
[EventType "swiss"]
[EventCountry "CZE"]
[SourceTitle "playchess.com"]
[Source "ChessBase"]
[SourceQuality "1"]
[TimeControl "40/5400+30:1800+30"]

1. d4 {[%emt 0:00:00]} d5 {[%emt 0:00:00]} 2. Bf4 {[%emt 0:00:21]} e6 {[%emt 0:01:34]} 3. e3 {[%emt 0:00:26]} Bd6 {[%emt 0:01:31]} 4. Nf3 {[%emt 0:00:13]} c5 {[%emt 0:02:52]} 5. dxc5 {[%emt 0:01:23]} Bxc5 {[%emt 0:07:32]} 6. c4 {[%emt 0:00:15]} Nf6 {[%emt 0:03:56]} 7. Nc3 {[%emt 0:00:07]} O-O {[%emt 0:01:56]} 8. Qc2 {[%emt 0:00:55]} Nc6 {[%emt 0:12:04]} 9. Rd1 {[%emt 0:10:29]} b6 {[%emt 0:07:40]} 10. a3 {[%emt 0:10:29]} Bb7 {[%emt 0:08:46]} 11. Be2 {[%emt 0:11:21]} Rc8 {[%emt 0:09:15]} 12. O-O {[%emt 0:00:23]} a5 {[%emt 0:04:59]} 13. cxd5 {[%emt 0:12:08]} exd5 {[%emt 0:01:23]} 14. Bg5 {[%emt 0:01:28]} Ne7 {[%emt 0:13:54]} 15. Bxf6 {[%emt 0:03:07]} gxf6 {[%emt 0:00:06]} 16. Bd3 {[%emt 0:13:03]} Ng6 {[%emt 0:05:47]} 17. Bf5 {[%emt 0:03:54]} Rc7 {[%emt 0:01:50]} 18. Qa4 {[%emt 0:02:42]} Bc6 {[%emt 0:02:26]} 19. Qg4 {[%emt 0:00:19]} Kh8 {[%emt 0:02:11]} 20. Qh5 {[%emt 0:06:49]} Rg8 {[%emt 0:03:04]} 21. Be4 {[%emt 0:04:04]} dxe4 {[%emt 0:02:05]} 22. Rxd8 {[%emt 0:00:04]} Rxd8 {[%emt 0:00:08]} 23. Qf5 {[%emt 0:00:12]} Be7 {[%emt 0:02:39]} 24. Nxe4 {[%emt 0:02:27]} Rd5 {[%emt 0:00:16]} 25. Qh3 {[%emt 0:00:05]} 1-0

[Event "CZE-ch 2020"]
[Site "Pilsen"]
[Date "2020.08.23"]
[Round "1.8"]
[White "Houska, Jiri"]
[Black "Polak, Tomas"]
[Result "0-1"]
[ECO "E16"]
[WhiteElo "2202"]
[BlackElo "2563"]
[Annotator "ChessBase"]
[PlyCount "92"]
[EventDate "2020.08.23"]
[EventType "swiss"]
[EventCountry "CZE"]
[SourceTitle "playchess.com"]
[Source "ChessBase"]
[SourceQuality "1"]
[TimeControl "40/5400+30:1800+30"]

1. d4 {[%emt 0:00:00]} Nf6 {[%emt 0:00:00]} 2. Nf3 {[%emt 0:00:00]} b6 {[%emt 0:01:14]} 3. c4 {[%emt 0:01:06]} Bb7 {[%emt 0:00:10]} 4. g3 {[%emt 0:02:44]} e6 {[%emt 0:04:58]} 5. Bg2 {[%emt 0:00:22]} Bb4+ {[%emt 0:00:19]} 6. Bd2 {[%emt 0:00:23]} a5 {[%emt 0:00:26]} 7. Nc3 {[%emt 0:03:34]} O-O {[%emt 0:00:51]} 8. O-O {[%emt 0:00:07]} d6 {[%emt 0:01:38]} 9. Rc1 {[%emt 0:05:53]} Nbd7 {[%emt 0:00:48]} 10. Re1 {[%emt 0:09:40]} h6 {[%emt 0:02:20]} 11. Qc2 {[%emt 0:03:24]} Re8 {[%emt 0:01:36]} 12. e4 {[%emt 0:03:22]} e5 {[%emt 0:03:08]} 13. d5 {[%emt 0:00:36]} Nc5 {[%emt 0:00:38]} 14. Na4 {[%emt 0:05:55]} Bc8 {[%emt 0:02:43]} 15. a3 {[%emt 0:02:31]} Bxd2 {[%emt 0:01:12]} 16. Nxd2 {[%emt 0:00:10]} Bd7 {[%emt 0:00:14]} 17. Nxc5 {[%emt 0:03:10]} bxc5 {[%emt 0:00:10]} 18. b3 {[%emt 0:06:18]} Qb8 {[%emt 0:06:07]} 19. Rb1 {[%emt 0:01:06]} Qa7 {[%emt 0:00:15]} 20. Rb2 {[%emt 0:05:46]} Rab8 {[%emt 0:01:24]} 21. Reb1 {[%emt 0:00:50]} Rb6 {[%emt 0:03:01]} 22. h3 {[%emt 0:05:54]} Reb8 {[%emt 0:01:29]} 23. Qc3 {[%emt 0:00:28]} Be8 {[%emt 0:04:40]} 24. Kh2 {[%emt 0:00:50]} Qb7 {[%emt 0:05:16]} 25. f4 {[%emt 0:01:22]} Nd7 {[%emt 0:02:07]} 26. Nf3 {[%emt 0:01:38]} f6 {[%emt 0:01:15]} 27. h4 {[%emt 0:00:42]} a4 {[%emt 0:04:50]} 28. b4 {[%emt 0:02:04]} cxb4 {[%emt 0:00:14]} 29. Rxb4 {[%emt 0:00:44]} Qa7 {[%emt 0:00:41]} 30. Ne1 {[%emt 0:07:55]} Nc5 {[%emt 0:06:50]} 31. Nd3 {[%emt 0:00:23]} Nxd3 {[%emt 0:01:48]} 32. Qxd3 {[%emt 0:00:04]} Rxb4 {[%emt 0:00:20]} 33. axb4 {[%emt 0:00:08]} exf4 {[%emt 0:07:32]} 34. gxf4 {[%emt 0:00:26]} Qf2 {[%emt 0:00:10]} 35. Qg3 {[%emt 0:00:58]} Qc2 {[%emt 0:08:04]} 36. Rg1 {[%emt 0:00:21]} Rxb4 {[%emt 0:01:13]} 37. Kh1 {[%emt 0:02:15]} Rb1 {[%emt 0:02:32]} 38. e5 {[%emt 0:04:46]} Rxg1+ {[%emt 0:02:53]} 39. Kxg1 {[%emt 0:00:06]} Qg6 {[%emt 0:08:09]} 40. Qe3 {[%emt 0:00:36]} fxe5 {[%emt 0:01:00]} 41. fxe5 {[%emt 0:30:08]} dxe5 {[%emt 0:30:18]} 42. c5 {[%emt 0:05:28]} Bd7 {[%emt 0:00:00]} 43. c6 {[%emt 0:00:00]} Bc8 {[%emt 0:00:00]} 44. Qa3 {[%emt 0:00:00]} Kf7 {[%emt 0:00:00]} 45. Qxa4 {[%emt 0:00:00]} Bh3 {[%emt 0:00:00]} 46. Qe4 {[%emt 0:00:00]} Qxg2+ {[%emt 0:00:00]} 0-1

[Event "CZE-ch 2020"]
[Site "Pilsen"]
[Date "2020.08.23"]
[Round "1.9"]
[White "Simacek, Pavel"]
[Black "Simet, Martin"]
[Result "1-0"]
[ECO "B07"]
[WhiteElo "2474"]
[BlackElo "2194"]
[Annotator "ChessBase"]
[PlyCount "61"]
[EventDate "2020.08.23"]
[EventType "swiss"]
[EventCountry "CZE"]
[SourceTitle "playchess.com"]
[Source "ChessBase"]
[SourceQuality "1"]
[TimeControl "40/5400+30:1800+30"]

1. e4 {[%emt 0:00:00]} d6 {[%emt 0:00:00]} 2. d4 {[%emt 0:00:11]} Nf6 {[%emt 0:00:53]} 3. Nc3 {[%emt 0:01:07]} e5 {[%emt 0:00:25]} 4. dxe5 {[%emt 0:05:12]} dxe5 {[%emt 0:00:11]} 5. Qxd8+ {[%emt 0:00:04]} Kxd8 {[%emt 0:00:08]} 6. Bg5 {[%emt 0:00:03]} Be6 {[%emt 0:05:14]} 7. f4 exf4 {[%emt 0:03:58]} 8. Nge2 {[%emt 0:03:13]} Bd6 {[%emt 0:04:08]} 9. Nxf4 {[%emt 0:05:05]} h6 {[%emt 0:03:18]} 10. Nxe6+ {[%emt 0:00:49]} fxe6 {[%emt 0:00:50]} 11. Bd2 {[%emt 0:04:03]} Nbd7 {[%emt 0:03:12]} 12. Be2 {[%emt 0:00:31]} a6 {[%emt 0:04:18]} 13. O-O-O {[%emt 0:21:09]} Ke7 {[%emt 0:04:47]} 14. g4 {[%emt 0:01:36]} b5 {[%emt 0:05:00]} 15. a3 {[%emt 0:02:21]} Rab8 {[%emt 0:05:41]} 16. h3 {[%emt 0:10:08]} b4 {[%emt 0:03:34]} 17. axb4 {[%emt 0:00:14]} Rxb4 {[%emt 0:00:20]} 18. b3 {[%emt 0:02:04]} Rhb8 {[%emt 0:09:12]} 19. Bxa6 {[%emt 0:13:25]} Nc5 {[%emt 0:09:39]} 20. Be2 {[%emt 0:00:09]} Nfxe4 {[%emt 0:01:47]} 21. Nxe4 {[%emt 0:01:02]} Nxe4 {[%emt 0:00:57]} 22. Bxb4 {[%emt 0:13:35]} Bxb4 {[%emt 0:00:07]} 23. c3 {[%emt 0:01:35]} Nxc3 {[%emt 0:01:39]} 24. Rd2 {[%emt 0:00:21]} e5 {[%emt 0:12:40]} 25. Bf3 {[%emt 0:01:08]} e4 {[%emt 0:02:11]} 26. Bxe4 {[%emt 0:00:34]} Nxe4 {[%emt 0:00:27]} 27. Re2 {[%emt 0:00:04]} Bd2+ {[%emt 0:01:19]} 28. Kc2 {[%emt 0:00:03]} Rb4 {[%emt 0:00:06]} 29. Kd3 {[%emt 0:05:51]} Rxb3+ {[%emt 0:00:16]} 30. Kxe4 {[%emt 0:00:03]} Bb4 {[%emt 0:01:29]} 31. Kd5+ {[%emt 0:00:36]} 1-0

[Event "CZE-ch 2020"]
[Site "Pilsen"]
[Date "2020.08.23"]
[Round "1.10"]
[White "Flajsman, Pavel"]
[Black "Malinovsky, Karel"]
[Result "1/2-1/2"]
[ECO "E06"]
[WhiteElo "2184"]
[BlackElo "2474"]
[Annotator "ChessBase"]
[PlyCount "63"]
[EventDate "2020.08.23"]
[EventType "swiss"]
[EventCountry "CZE"]
[SourceTitle "playchess.com"]
[Source "ChessBase"]
[SourceQuality "1"]
[TimeControl "40/5400+30:1800+30"]

1. d4 {[%emt 0:00:00]} d5 {[%emt 0:00:00]} 2. Nf3 {[%emt 0:00:00]} Nf6 {[%emt 0:00:00]} 3. c4 {[%emt 0:00:11]} e6 {[%emt 0:00:14]} 4. g3 {[%emt 0:00:17]} Be7 {[%emt 0:00:18]} 5. Bg2 {[%emt 0:00:05]} O-O {[%emt 0:00:06]} 6. O-O {[%emt 0:00:04]} dxc4 {[%emt 0:00:14]} 7. Ne5 {[%emt 0:00:42]} c5 {[%emt 0:01:49]} 8. dxc5 {[%emt 0:00:28]} Qc7 {[%emt 0:00:07]} 9. Nxc4 {[%emt 0:00:38]} Qxc5 {[%emt 0:00:08]} 10. b3 {[%emt 0:02:14]} Rd8 {[%emt 0:01:43]} 11. Qc2 {[%emt 0:18:11]} Nc6 {[%emt 0:10:42]} 12. Ba3 {[%emt 0:01:42]} Nb4 {[%emt 0:01:48]} 13. Bxb4 {[%emt 0:01:05]} Qxb4 {[%emt 0:00:09]} 14. a3 {[%emt 0:06:22]} Qc5 {[%emt 0:02:53]} 15. Nbd2 {[%emt 0:10:32]} Rb8 {[%emt 0:07:55]} 16. Rac1 {[%emt 0:06:28]} Bd7 {[%emt 0:08:11]} 17. b4 {[%emt 0:17:07]} Qh5 {[%emt 0:08:46]} 18. Ne4 {[%emt 0:03:37]} Bb5 {[%emt 0:13:18]} 19. a4 {[%emt 0:09:30]} Nxe4 {[%emt 0:08:51]} 20. Bxe4 {[%emt 0:02:16]} Bxc4 {[%emt 0:03:41]} 21. Qxc4 {[%emt 0:00:02]} b5 {[%emt 0:00:17]} 22. axb5 {[%emt 0:01:46]} Qxb5 {[%emt 0:00:32]} 23. Qxb5 {[%emt 0:03:12]} Rxb5 {[%emt 0:00:07]} 24. Rc7 {[%emt 0:00:43]} Bf6 {[%emt 0:03:32]} 25. Rxa7 {[%emt 0:01:22]} Rxb4 {[%emt 0:00:08]} 26. Bf3 {[%emt 0:00:47]} Rbd4 {[%emt 0:00:23]} 27. Kg2 {[%emt 0:01:25]} R4d7 {[%emt 0:00:10]} 28. Rxd7 {[%emt 0:00:17]} Rxd7 {[%emt 0:00:07]} 29. Rb1 {[%emt 0:00:14]} g6 {[%emt 0:00:11]} 30. Rb7 {[%emt 0:00:25]} Rxb7 {[%emt 0:00:06]} 31. Bxb7 {[%emt 0:00:04]} h5 {[%emt 0:00:17]} 32. h4 {[%emt 0:00:30]} 1/2-1/2

[Event "CZE-ch 2020"]
[Site "Pilsen"]
[Date "2020.08.23"]
[Round "1.11"]
[White "Havelka, Josef"]
[Black "Novotny, Martin"]
[Result "1/2-1/2"]
[ECO "C08"]
[WhiteElo "2367"]
[BlackElo "2180"]
[Annotator "ChessBase"]
[PlyCount "66"]
[EventDate "2020.08.23"]
[EventType "swiss"]
[EventCountry "CZE"]
[SourceTitle "playchess.com"]
[Source "ChessBase"]
[SourceQuality "1"]
[TimeControl "40/5400+30:1800+30"]

1. e4 {[%emt 0:00:00]} e6 {[%emt 0:00:00]} 2. d4 {[%emt 0:00:00]} d5 {[%emt 0:00:00]} 3. Nd2 {[%emt 0:00:48]} c5 {[%emt 0:00:11]} 4. exd5 {[%emt 0:00:48]} exd5 {[%emt 0:00:20]} 5. Bb5+ {[%emt 0:06:05]} Nc6 {[%emt 0:05:38]} 6. Ngf3 {[%emt 0:03:44]} cxd4 {[%emt 0:04:21]} 7. O-O {[%emt 0:05:01]} Bd6 {[%emt 0:01:31]} 8. Re1+ {[%emt 0:01:34]} Nge7 {[%emt 0:01:07]} 9. h3 {[%emt 0:12:14]} O-O {[%emt 0:01:57]} 10. Nb3 {[%emt 0:02:22]} Bd7 {[%emt 0:11:18]} 11. Nbxd4 {[%emt 0:05:51]} Re8 {[%emt 0:06:57]} 12. Bf1 {[%emt 0:05:36]} a6 {[%emt 0:06:43]} 13. c4 {[%emt 0:20:56]} Qc7 {[%emt 0:30:31]} 14. Bg5 {[%emt 0:17:14]} Nxd4 {[%emt 0:08:12]} 15. Qxd4 {[%emt 0:03:17]} Bc5 {[%emt 0:02:21]} 16. Qc3 {[%emt 0:01:52]} Qb6 {[%emt 0:05:48]} 17. Be3 {[%emt 0:01:11]} Rac8 {[%emt 0:01:43]} 18. Bxc5 {[%emt 0:00:38]} Qxc5 {[%emt 0:02:48]} 19. b4 {[%emt 0:04:14]} Qa7 {[%emt 0:02:23]} 20. Qb3 {[%emt 0:02:01]} Be6 {[%emt 0:01:50]} 21. Rac1 {[%emt 0:01:26]} h6 {[%emt 0:01:05]} 22. c5 {[%emt 0:01:11]} Nc6 {[%emt 0:00:33]} 23. a4 {[%emt 0:01:06]} b6 {[%emt 0:02:07]} 24. cxb6 {[%emt 0:01:12]} Qxb6 {[%emt 0:00:09]} 25. b5 {[%emt 0:00:32]} Na7 {[%emt 0:01:11]} 26. Qb4 {[%emt 0:00:30]} axb5 {[%emt 0:00:10]} 27. axb5 {[%emt 0:00:06]} Bd7 {[%emt 0:01:20]} 28. Rxc8 {[%emt 0:01:28]} Rxc8 {[%emt 0:01:03]} 29. Nd4 {[%emt 0:00:56]} Rb8 {[%emt 0:00:32]} 30. Re7 {[%emt 0:00:36]} Nxb5 {[%emt 0:00:32]} 31. Rxd7 {[%emt 0:00:30]} Nxd4 {[%emt 0:00:31]} 32. Qxb6 {[%emt 0:00:24]} Rxb6 {[%emt 0:00:05]} 33. Rxd5 {[%emt 0:00:04]} Ne6 {[%emt 0:00:18]} 1/2-1/2

[Event "CZE-ch 2020"]
[Site "Pilsen"]
[Date "2020.08.23"]
[Round "1.13"]
[White "Finek, Vaclav"]
[Black "Jezek, Jan"]
[Result "1-0"]
[ECO "A41"]
[WhiteElo "2344"]
[BlackElo "2162"]
[Annotator "ChessBase"]
[PlyCount "89"]
[EventDate "2020.08.23"]
[EventType "swiss"]
[EventCountry "CZE"]
[SourceTitle "playchess.com"]
[Source "ChessBase"]
[SourceQuality "1"]
[TimeControl "40/5400+30:1800+30"]

1. d4 {[%emt 0:00:00]} d6 {[%emt 0:00:05]} 2. Nf3 {[%emt 0:00:00]} Nd7 {[%emt 0:00:44]} 3. c4 {[%emt 0:02:25]} Ngf6 {[%emt 0:00:45]} 4. Nc3 {[%emt 0:00:10]} c6 {[%emt 0:01:25]} 5. g3 {[%emt 0:02:27]} e5 {[%emt 0:00:36]} 6. Bg2 {[%emt 0:01:06]} Be7 {[%emt 0:01:43]} 7. O-O {[%emt 0:00:29]} O-O {[%emt 0:00:19]} 8. b4 {[%emt 0:10:04]} a5 {[%emt 0:12:34]} 9. b5 {[%emt 0:07:07]} exd4 {[%emt 0:08:14]} 10. Nxd4 {[%emt 0:01:58]} c5 {[%emt 0:02:56]} 11. Nf5 {[%emt 0:07:20]} Nb6 {[%emt 0:00:20]} 12. Ne3 {[%emt 0:00:38]} Qc7 {[%emt 0:07:10]} 13. Bb2 {[%emt 0:03:34]} Be6 {[%emt 0:03:18]} 14. Qd3 {[%emt 0:01:14]} Rfe8 {[%emt 0:06:14]} 15. f4 {[%emt 0:04:47]} Rad8 {[%emt 0:14:09]} 16. f5 {[%emt 0:02:38]} Bc8 {[%emt 0:00:45]} 17. Rad1 {[%emt 0:01:55]} Bf8 {[%emt 0:01:31]} 18. Rf4 {[%emt 0:04:34]} Qe7 {[%emt 0:03:41]} 19. Bc1 {[%emt 0:05:58]} Nbd7 {[%emt 0:09:33]} 20. Ned5 {[%emt 0:03:18]} Nxd5 {[%emt 0:00:14]} 21. Bxd5 {[%emt 0:00:13]} Ne5 {[%emt 0:01:25]} 22. Qc2 {[%emt 0:02:51]} g5 {[%emt 0:06:52]} 23. Rff1 {[%emt 0:04:04]} h6 {[%emt 0:03:03]} 24. Ne4 {[%emt 0:02:12]} Kh8 {[%emt 0:02:11]} 25. f6 {[%emt 0:01:49]} Qd7 {[%emt 0:02:08]} 26. Bxg5 {[%emt 0:03:18]} Qh3 {[%emt 0:01:07]} 27. Bc1 {[%emt 0:04:43]} Ng4 {[%emt 0:00:40]} 28. e3 {[%emt 0:00:41]} Be6 {[%emt 0:01:23]} 29. Rf4 {[%emt 0:01:50]} Bxd5 {[%emt 0:01:07]} 30. Rxd5 {[%emt 0:00:19]} Re5 {[%emt 0:00:36]} 31. Qe2 {[%emt 0:04:12]} Rxd5 {[%emt 0:03:16]} 32. cxd5 {[%emt 0:00:14]} Ne5 {[%emt 0:00:31]} 33. Nf2 {[%emt 0:01:00]} Qd7 {[%emt 0:00:47]} 34. e4 {[%emt 0:00:11]} Ng6 {[%emt 0:00:54]} 35. Qh5 {[%emt 0:02:01]} Qxb5 {[%emt 0:01:19]} 36. Rf3 {[%emt 0:02:52]} Qb1 {[%emt 0:01:21]} 37. Rc3 {[%emt 0:00:22]} Re8 {[%emt 0:00:21]} 38. Kg2 {[%emt 0:02:11]} Re5 {[%emt 0:00:53]} 39. Qh3 {[%emt 0:01:26]} Rxe4 {[%emt 0:01:08]} 40. Qf5 {[%emt 0:04:29]} Rb4 {[%emt 0:00:41]} 41. Qh5 {[%emt 0:30:11]} Kh7 {[%emt 0:30:45]} 42. a3 {[%emt 0:04:28]} Rd4 {[%emt 0:00:00]} 43. Be3 {[%emt 0:00:00]} Qa2 {[%emt 0:00:00]} 44. Bxd4 {[%emt 0:00:00]} Qxd5+ {[%emt 0:00:00]} 45. Qxd5 {[%emt 0:00:00]} 1-0